[Event "Titled Tuesday Blitz November 14 Early 2023"]
[White "Baches Garcia, Guillermo"]
[Black "Zaksaite, Salomeja"]
[WhiteFideId "2209764"]
[BlackFideId "12801496"]
[WhiteElo "2535"]
[BlackElo "2349"]
[Result "1-0"]
[Round "7"]
[TimeControl "180+1"]
[Date "2023.11.14"]
[WhiteClock "0:00:14"]
[BlackClock "0:00:00"]
[Board "113"]

1. d4 {[%clk 0:03:00]}  Nf6 {[%clk 0:02:59]} 2. Nf3 {[%clk 0:03:01]}  g6 {[%clk 0:02:59]} 3. Bg5 {[%clk 0:03:02]}  Bg7 {[%clk 0:03:00]} 4. Nbd2 {[%clk 0:03:02]}  d5 {[%clk 0:02:57]} 5. e3 {[%clk 0:03:02]}  c6 {[%clk 0:02:55]} 6. Be2 {[%clk 0:03:02]}  Nbd7 {[%clk 0:02:55]} 7. O-O {[%clk 0:02:59]}  Nf8 {[%clk 0:02:55]} 8. h3 {[%clk 0:02:56]}  Ne6 {[%clk 0:02:52]} 9. Bh4 {[%clk 0:02:56]}  Bd7 {[%clk 0:02:51]} 10. c4 {[%clk 0:02:53]}  O-O {[%clk 0:02:48]} 11. b4 {[%clk 0:02:50]}  a5 {[%clk 0:02:47]} 12. a3 {[%clk 0:02:49]}  axb4 {[%clk 0:02:47]} 13. axb4 {[%clk 0:02:50]}  dxc4 {[%clk 0:02:38]} 14. Nxc4 {[%clk 0:02:45]}  Nd5 {[%clk 0:02:37]} 15. Qb3 {[%clk 0:02:40]}  Rxa1 {[%clk 0:02:04]} 16. Rxa1 {[%clk 0:02:39]}  Nec7 {[%clk 0:01:48]} 17. Nfe5 {[%clk 0:02:23]}  Na6 {[%clk 0:01:36]} 18. b5 {[%clk 0:02:14]}  cxb5 {[%clk 0:01:31]} 19. Na5 {[%clk 0:02:10]}  Be6 {[%clk 0:01:13]} 20. Nxb7 {[%clk 0:01:42]}  Qb8 {[%clk 0:00:31]} 21. Rxa6 {[%clk 0:01:14]}  Qxb7 {[%clk 0:00:28]} 22. Qxb5 {[%clk 0:01:09]}  Qxb5 {[%clk 0:00:21]} 23. Bxb5 {[%clk 0:01:10]}  Nc7 {[%clk 0:00:20]} 24. Rb6 {[%clk 0:01:04]}  Bxe5 {[%clk 0:00:13]} 25. dxe5 {[%clk 0:00:58]}  Nxb5 {[%clk 0:00:13]} 26. Rxb5 {[%clk 0:00:58]}  Re8 {[%clk 0:00:12]} 27. Rb7 {[%clk 0:00:54]}  Kf8 {[%clk 0:00:12]} 28. Bg5 {[%clk 0:00:51]}  Bd5 {[%clk 0:00:12]} 29. Bh6+ {[%clk 0:00:50]}  Kg8 {[%clk 0:00:11]} 30. Rd7 {[%clk 0:00:50]}  e6 {[%clk 0:00:12]} 31. g4 {[%clk 0:00:46]}  Ra8 {[%clk 0:00:11]} 32. Kh2 {[%clk 0:00:45]}  Rb8 {[%clk 0:00:10]} 33. Kg3 {[%clk 0:00:43]}  Ra8 {[%clk 0:00:10]} 34. f3 {[%clk 0:00:41]}  Rb8 {[%clk 0:00:10]} 35. e4 {[%clk 0:00:41]}  Bc6 {[%clk 0:00:10]} 36. Rc7 {[%clk 0:00:39]}  Be8 {[%clk 0:00:07]} 37. Kf4 {[%clk 0:00:39]}  Ra8 {[%clk 0:00:06]} 38. h4 {[%clk 0:00:39]}  Rb8 {[%clk 0:00:06]} 39. h5 {[%clk 0:00:39]}  Ra8 {[%clk 0:00:06]} 40. Kg5 {[%clk 0:00:39]}  Rb8 {[%clk 0:00:05]} 41. Re7 {[%clk 0:00:39]}  Ra8 {[%clk 0:00:05]} 42. Rc7 {[%clk 0:00:39]}  Rb8 {[%clk 0:00:05]} 43. Ra7 {[%clk 0:00:39]}  Rc8 {[%clk 0:00:05]} 44. Kf6 {[%clk 0:00:38]}  Rb8 {[%clk 0:00:05]} 45. f4 {[%clk 0:00:36]}  Rc8 {[%clk 0:00:05]} 46. Rb7 {[%clk 0:00:36]}  Ra8 {[%clk 0:00:05]} 47. Rc7 {[%clk 0:00:35]}  Rb8 {[%clk 0:00:05]} 48. f5 {[%clk 0:00:32]}  gxf5 {[%clk 0:00:04]} 49. exf5 {[%clk 0:00:31]}  exf5 {[%clk 0:00:04]} 50. gxf5 {[%clk 0:00:30]}  Rd8 {[%clk 0:00:04]} 51. e6 {[%clk 0:00:28]}  fxe6 {[%clk 0:00:04]} 52. fxe6 {[%clk 0:00:28]}  Bxh5 {[%clk 0:00:04]} 53. Rg7+ {[%clk 0:00:26]}  Kh8 {[%clk 0:00:04]} 54. Rd7 {[%clk 0:00:24]}  Re8 {[%clk 0:00:03]} 55. e7 {[%clk 0:00:20]}  Kg8 {[%clk 0:00:03]} 56. Rd5 {[%clk 0:00:18]}  Bg6 {[%clk 0:00:03]} 57. Rd8 {[%clk 0:00:17]}  Kh8 {[%clk 0:00:02]} 58. Ke6 {[%clk 0:00:15]}  Kg8 {[%clk 0:00:03]} 59. Kf6 {[%clk 0:00:14]}  Kh8 {[%clk 0:00:03]} 60. Ke6 {[%clk 0:00:14]}  Kg8 {[%clk 0:00:03]} 61. Bg5 {[%clk 0:00:15]}  Bf7+ {[%clk 0:00:03]} 62. Kd7 {[%clk 0:00:14]}  Be6+ {[%clk 0:00:01]} 63. Kxe6 {[%clk 0:00:14]}  Kg7 {[%clk 0:00:00]} 64. Rxe8 {[%clk 0:00:14]} 1-0


[Site "https://www.chess.com"]

[Event "Titled Tuesday Blitz November 14 Early 2023"]
[White "Bobomurodova, Maftuna"]
[Black "RodokininEV"]
[WhiteFideId "14207400"]
[WhiteElo "2339"]
[BlackElo "2531"]
[Result "0-1"]
[Round "7"]
[TimeControl "180+1"]
[Date "2023.11.14"]
[WhiteClock "0:01:50"]
[BlackClock "0:02:46"]
[Board "114"]

1. e4 {[%clk 0:03:00]}  c5 {[%clk 0:02:59]} 2. Nf3 {[%clk 0:03:00]}  Nc6 {[%clk 0:03:00]} 3. d4 {[%clk 0:02:58]}  cxd4 {[%clk 0:03:00]} 4. Nxd4 {[%clk 0:02:58]}  Nf6 {[%clk 0:03:00]} 5. Nc3 {[%clk 0:02:58]}  e5 {[%clk 0:03:00]} 6. Ndb5 {[%clk 0:02:58]}  d6 {[%clk 0:03:00]} 7. Bg5 {[%clk 0:02:57]}  a6 {[%clk 0:02:59]} 8. Na3 {[%clk 0:02:57]}  b5 {[%clk 0:03:00]} 9. Nd5 {[%clk 0:02:57]}  Be7 {[%clk 0:02:59]} 10. Bxf6 {[%clk 0:02:57]}  Bxf6 {[%clk 0:03:00]} 11. c4 {[%clk 0:02:56]}  Nd4 {[%clk 0:02:59]} 12. cxb5 {[%clk 0:02:39]}  Bb7 {[%clk 0:02:58]} 13. Bc4 {[%clk 0:02:32]}  axb5 {[%clk 0:02:58]} 14. Nxb5 {[%clk 0:02:27]}  Bxd5 {[%clk 0:02:55]} 15. exd5 {[%clk 0:02:25]}  Qa5+ {[%clk 0:02:53]} 16. Nc3 {[%clk 0:02:24]}  Rc8 {[%clk 0:02:53]} 17. Bb3 {[%clk 0:02:10]}  Rxc3 {[%clk 0:02:53]} 18. bxc3 {[%clk 0:02:07]}  Qxc3+ {[%clk 0:02:54]} 19. Kf1 {[%clk 0:02:07]}  O-O {[%clk 0:02:49]} 20. g3 {[%clk 0:02:02]}  Bg5 {[%clk 0:02:48]} 21. Kg2 {[%clk 0:01:59]}  f5 {[%clk 0:02:48]} 22. Qd3 {[%clk 0:01:50]}  Qxd3 {[%clk 0:02:46]} 0-1


[Site "https://www.chess.com"]

[Event "Titled Tuesday Blitz November 14 Early 2023"]
[White "Ruge, Edison"]
[Black "Lopez Martinez, Josep Manuel"]
[WhiteFideId "4401000"]
[BlackFideId "2212943"]
[WhiteElo "2332"]
[BlackElo "2530"]
[Result "0-1"]
[Round "7"]
[TimeControl "180+1"]
[Date "2023.11.14"]
[WhiteClock "0:00:00"]
[BlackClock "0:00:08"]
[Board "117"]

1. e4 {[%clk 0:03:00]}  c5 {[%clk 0:02:58]} 2. Nc3 {[%clk 0:02:58]}  e6 {[%clk 0:02:56]} 3. f4 {[%clk 0:02:59]}  d5 {[%clk 0:02:54]} 4. Bb5+ {[%clk 0:02:57]}  Bd7 {[%clk 0:02:54]} 5. Bxd7+ {[%clk 0:02:52]}  Qxd7 {[%clk 0:02:53]} 6. d3 {[%clk 0:02:52]}  Nc6 {[%clk 0:02:53]} 7. Nf3 {[%clk 0:02:51]}  dxe4 {[%clk 0:02:51]} 8. Nxe4 {[%clk 0:02:48]}  Be7 {[%clk 0:02:51]} 9. O-O {[%clk 0:02:47]}  Nf6 {[%clk 0:02:51]} 10. Kh1 {[%clk 0:02:46]}  Rd8 {[%clk 0:02:46]} 11. Nc3 {[%clk 0:02:41]}  O-O {[%clk 0:02:44]} 12. Be3 {[%clk 0:02:40]}  b6 {[%clk 0:02:43]} 13. Ne5 {[%clk 0:02:31]}  Qc8 {[%clk 0:02:36]} 14. Qf3 {[%clk 0:02:28]}  Nd5 {[%clk 0:02:35]} 15. Nxd5 {[%clk 0:02:19]}  Rxd5 {[%clk 0:02:33]} 16. Nxc6 {[%clk 0:01:59]}  Qxc6 {[%clk 0:02:32]} 17. Rae1 {[%clk 0:01:59]}  Qd7 {[%clk 0:02:31]} 18. Qe4 {[%clk 0:01:54]}  Bf6 {[%clk 0:02:31]} 19. b3 {[%clk 0:01:42]}  Rd8 {[%clk 0:02:27]} 20. Re2 {[%clk 0:01:41]}  g6 {[%clk 0:02:25]} 21. h3 {[%clk 0:01:39]}  Bd4 {[%clk 0:02:20]} 22. Bc1 {[%clk 0:01:36]}  Bg7 {[%clk 0:02:13]} 23. Be3 {[%clk 0:01:28]}  b5 {[%clk 0:02:08]} 24. Ref2 {[%clk 0:01:20]}  a6 {[%clk 0:02:08]} 25. g4 {[%clk 0:01:19]}  f5 {[%clk 0:02:06]} 26. Qg2 {[%clk 0:01:17]}  Bd4 {[%clk 0:02:02]} 27. Bxd4 {[%clk 0:01:15]}  Rxd4 {[%clk 0:02:01]} 28. Re1 {[%clk 0:01:14]}  Qd6 {[%clk 0:01:48]} 29. gxf5 {[%clk 0:01:05]}  exf5 {[%clk 0:01:46]} 30. Qf3 {[%clk 0:01:02]}  Kf7 {[%clk 0:01:41]} 31. Re5 {[%clk 0:01:02]}  Rd5 {[%clk 0:01:37]} 32. Rfe2 {[%clk 0:01:00]}  Rd7 {[%clk 0:01:34]} 33. Kg2 {[%clk 0:00:52]}  Rxe5 {[%clk 0:01:18]} 34. Rxe5 {[%clk 0:00:32]}  Re7 {[%clk 0:01:01]} 35. Rd5 {[%clk 0:00:17]}  Qc7 {[%clk 0:00:51]} 36. Kg3 {[%clk 0:00:15]}  Rd7 {[%clk 0:00:38]} 37. c4 {[%clk 0:00:14]}  Rd6 {[%clk 0:00:33]} 38. Qe3 {[%clk 0:00:13]}  Rxd5 {[%clk 0:00:29]} 39. cxd5 {[%clk 0:00:13]}  Qd6 {[%clk 0:00:30]} 40. Qe5 {[%clk 0:00:13]}  Qxe5 {[%clk 0:00:27]} 41. fxe5 {[%clk 0:00:13]}  g5 {[%clk 0:00:27]} 42. Kf3 {[%clk 0:00:12]}  h5 {[%clk 0:00:23]} 43. Kg3 {[%clk 0:00:11]}  h4+ {[%clk 0:00:22]} 44. Kf3 {[%clk 0:00:10]}  Ke7 {[%clk 0:00:22]} 45. a3 {[%clk 0:00:10]}  a5 {[%clk 0:00:19]} 46. Ke3 {[%clk 0:00:10]}  Kd7 {[%clk 0:00:18]} 47. Kf3 {[%clk 0:00:10]}  Ke7 {[%clk 0:00:18]} 48. Ke3 {[%clk 0:00:10]}  g4 {[%clk 0:00:18]} 49. hxg4 {[%clk 0:00:07]}  fxg4 {[%clk 0:00:18]} 50. Kf2 {[%clk 0:00:07]}  Kf7 {[%clk 0:00:17]} 51. Kg2 {[%clk 0:00:07]}  Kg6 {[%clk 0:00:17]} 52. Kh2 {[%clk 0:00:08]}  Kf5 {[%clk 0:00:17]} 53. d6 {[%clk 0:00:07]}  Ke6 {[%clk 0:00:17]} 54. Kg2 {[%clk 0:00:08]}  Kd7 {[%clk 0:00:16]} 55. Kh2 {[%clk 0:00:08]}  Ke6 {[%clk 0:00:16]} 56. Kg2 {[%clk 0:00:09]}  a4 {[%clk 0:00:13]} 57. bxa4 {[%clk 0:00:08]}  c4 {[%clk 0:00:13]} 58. dxc4 {[%clk 0:00:08]}  bxc4 {[%clk 0:00:13]} 59. a5 {[%clk 0:00:08]}  c3 {[%clk 0:00:14]} 60. a6 {[%clk 0:00:08]}  c2 {[%clk 0:00:14]} 61. a7 {[%clk 0:00:07]}  c1=Q {[%clk 0:00:13]} 62. a8=Q {[%clk 0:00:07]}  Qd2+ {[%clk 0:00:13]} 63. Kf1 {[%clk 0:00:07]}  Qd1+ {[%clk 0:00:13]} 64. Kg2 {[%clk 0:00:06]}  Qe2+ {[%clk 0:00:10]} 65. Kg1 {[%clk 0:00:06]}  Qe1+ {[%clk 0:00:10]} 66. Kh2 {[%clk 0:00:04]}  Qf2+ {[%clk 0:00:09]} 67. Qg2 {[%clk 0:00:03]}  Qf4+ {[%clk 0:00:09]} 68. Kh1 {[%clk 0:00:00]}  Kxe5 {[%clk 0:00:08]} 0-1


[Site "https://www.chess.com"]

[Event "Titled Tuesday Blitz November 14 Early 2023"]
[White "Rasmussen, Casper"]
[Black "LeoLV10"]
[WhiteFideId "1402005"]
[WhiteElo "2297"]
[BlackElo "2529"]
[Result "0-1"]
[Round "7"]
[TimeControl "180+1"]
[Date "2023.11.14"]
[WhiteClock "0:00:33"]
[BlackClock "0:00:27"]
[Board "118"]

1. c4 {[%clk 0:03:00]}  c5 {[%clk 0:02:57]} 2. g3 {[%clk 0:03:01]}  g6 {[%clk 0:02:57]} 3. Bg2 {[%clk 0:03:02]}  Bg7 {[%clk 0:02:58]} 4. Nc3 {[%clk 0:03:03]}  Nc6 {[%clk 0:02:59]} 5. d3 {[%clk 0:03:03]}  e6 {[%clk 0:02:56]} 6. Nf3 {[%clk 0:03:04]}  Nge7 {[%clk 0:02:56]} 7. Bg5 {[%clk 0:03:03]}  O-O {[%clk 0:02:56]} 8. Qd2 {[%clk 0:03:03]}  a6 {[%clk 0:02:55]} 9. Bh6 {[%clk 0:03:03]}  d5 {[%clk 0:02:52]} 10. cxd5 {[%clk 0:03:04]}  exd5 {[%clk 0:02:52]} 11. h4 {[%clk 0:03:04]}  Re8 {[%clk 0:02:46]} 12. Bxg7 {[%clk 0:03:03]}  Kxg7 {[%clk 0:02:46]} 13. h5 {[%clk 0:03:04]}  Ng8 {[%clk 0:02:21]} 14. hxg6 {[%clk 0:02:44]}  hxg6 {[%clk 0:02:18]} 15. Nxd5 {[%clk 0:02:27]}  Qxd5 {[%clk 0:01:36]} 16. Rh7+ {[%clk 0:02:25]}  Kxh7 {[%clk 0:01:15]} 17. Ng5+ {[%clk 0:02:22]}  Qxg5 {[%clk 0:01:16]} 18. Qxg5 {[%clk 0:02:22]}  Nd4 {[%clk 0:01:16]} 19. O-O-O {[%clk 0:02:08]}  Nxe2+ {[%clk 0:01:07]} 20. Kb1 {[%clk 0:02:03]}  Bf5 {[%clk 0:01:05]} 21. g4 {[%clk 0:01:47]}  Bd7 {[%clk 0:00:50]} 22. Be4 {[%clk 0:01:22]}  Kg7 {[%clk 0:00:45]} 23. Qxc5 {[%clk 0:01:16]}  Bxg4 {[%clk 0:00:43]} 24. f3 {[%clk 0:01:11]}  Be6 {[%clk 0:00:38]} 25. Qe3 {[%clk 0:01:10]}  Ng3 {[%clk 0:00:34]} 26. Qd4+ {[%clk 0:01:05]}  Nf6 {[%clk 0:00:34]} 27. Qb6 {[%clk 0:00:53]}  Rad8 {[%clk 0:00:31]} 28. Qxb7 {[%clk 0:00:51]}  Ngxe4 {[%clk 0:00:27]} 29. fxe4 {[%clk 0:00:51]}  Nxe4 {[%clk 0:00:27]} 30. Qxa6 {[%clk 0:00:47]}  Ra8 {[%clk 0:00:23]} 31. Qxa8 {[%clk 0:00:37]}  Rxa8 {[%clk 0:00:22]} 32. dxe4 {[%clk 0:00:38]}  Bxa2+ {[%clk 0:00:23]} 33. Kc1 {[%clk 0:00:38]}  Rc8+ {[%clk 0:00:23]} 34. Kd2 {[%clk 0:00:37]}  Bb3 {[%clk 0:00:23]} 35. Re1 {[%clk 0:00:36]}  Rc2+ {[%clk 0:00:23]} 36. Ke3 {[%clk 0:00:36]}  Rxb2 {[%clk 0:00:23]} 37. Kf4 {[%clk 0:00:36]}  Be6 {[%clk 0:00:23]} 38. Rc1 {[%clk 0:00:35]}  Rf2+ {[%clk 0:00:23]} 39. Ke5 {[%clk 0:00:35]}  Ra2 {[%clk 0:00:22]} 40. Rc7 {[%clk 0:00:36]}  Ra5+ {[%clk 0:00:22]} 41. Kf4 {[%clk 0:00:36]}  Kf6 {[%clk 0:00:22]} 42. Rb7 {[%clk 0:00:34]}  g5+ {[%clk 0:00:22]} 43. Ke3 {[%clk 0:00:34]}  Ke5 {[%clk 0:00:22]} 44. Rb2 {[%clk 0:00:33]}  Ra3+ {[%clk 0:00:22]} 45. Kf2 {[%clk 0:00:33]}  Kxe4 {[%clk 0:00:23]} 46. Rb4+ {[%clk 0:00:33]}  Kf5 {[%clk 0:00:23]} 47. Rb8 {[%clk 0:00:34]}  Kf4 {[%clk 0:00:23]} 48. Rh8 {[%clk 0:00:34]}  f5 {[%clk 0:00:23]} 49. Kg1 {[%clk 0:00:35]}  g4 {[%clk 0:00:23]} 50. Rb8 {[%clk 0:00:36]}  Bd5 {[%clk 0:00:24]} 51. Rb4+ {[%clk 0:00:36]}  Be4 {[%clk 0:00:25]} 52. Rb2 {[%clk 0:00:36]}  Ra1+ {[%clk 0:00:25]} 53. Kf2 {[%clk 0:00:36]}  g3+ {[%clk 0:00:26]} 54. Ke2 {[%clk 0:00:37]}  Bf3+ {[%clk 0:00:27]} 55. Kd3 {[%clk 0:00:37]}  g2 {[%clk 0:00:27]} 56. Rb4+ {[%clk 0:00:38]}  Be4+ {[%clk 0:00:27]} 57. Kd4 {[%clk 0:00:37]}  Rd1+ {[%clk 0:00:27]} 58. Kc5 {[%clk 0:00:37]}  g1=Q+ {[%clk 0:00:28]} 59. Kb5 {[%clk 0:00:33]}  Rb1 {[%clk 0:00:27]} 0-1


[Site "https://www.chess.com"]

[Event "Titled Tuesday Blitz November 14 Early 2023"]
[White "Molenda, Marcin"]
[Black "Rodriguez Santiago, Jaime"]
[WhiteFideId "1173065"]
[BlackFideId "3100898"]
[WhiteElo "2527"]
[BlackElo "2280"]
[Result "1-0"]
[Round "7"]
[TimeControl "180+1"]
[Date "2023.11.14"]
[WhiteClock "0:00:08"]
[BlackClock "0:00:05"]
[Board "119"]

1. Nf3 {[%clk 0:03:00]}  Nf6 {[%clk 0:02:58]} 2. c4 {[%clk 0:02:59]}  e6 {[%clk 0:02:55]} 3. g3 {[%clk 0:02:58]}  d5 {[%clk 0:02:54]} 4. Bg2 {[%clk 0:02:58]}  c5 {[%clk 0:02:52]} 5. O-O {[%clk 0:02:54]}  Nc6 {[%clk 0:02:50]} 6. cxd5 {[%clk 0:02:52]}  exd5 {[%clk 0:02:49]} 7. d4 {[%clk 0:02:52]}  Be7 {[%clk 0:02:39]} 8. dxc5 {[%clk 0:02:51]}  Bxc5 {[%clk 0:02:39]} 9. Bg5 {[%clk 0:02:51]}  Be6 {[%clk 0:02:32]} 10. Nc3 {[%clk 0:02:47]}  O-O {[%clk 0:02:31]} 11. Rc1 {[%clk 0:02:46]}  Be7 {[%clk 0:02:28]} 12. Nd4 {[%clk 0:02:42]}  Nxd4 {[%clk 0:02:23]} 13. Qxd4 {[%clk 0:02:43]}  h6 {[%clk 0:02:21]} 14. Bf4 {[%clk 0:02:40]}  Rc8 {[%clk 0:02:12]} 15. Nb5 {[%clk 0:01:44]}  a6 {[%clk 0:01:54]} 16. Nc7 {[%clk 0:01:43]}  Qd7 {[%clk 0:01:53]} 17. Nxe6 {[%clk 0:01:40]}  fxe6 {[%clk 0:01:52]} 18. Bh3 {[%clk 0:01:39]}  b5 {[%clk 0:01:46]} 19. Qe5 {[%clk 0:01:36]}  Kf7 {[%clk 0:01:41]} 20. Rfd1 {[%clk 0:01:22]}  Rxc1 {[%clk 0:01:31]} 21. Rxc1 {[%clk 0:01:22]}  Rc8 {[%clk 0:01:32]} 22. Rc7 {[%clk 0:01:10]}  Rxc7 {[%clk 0:01:30]} 23. Qxc7 {[%clk 0:01:11]}  Qxc7 {[%clk 0:01:26]} 24. Bxc7 {[%clk 0:01:12]}  Ne4 {[%clk 0:01:22]} 25. f3 {[%clk 0:01:09]}  Bc5+ {[%clk 0:01:19]} 26. Kf1 {[%clk 0:01:02]}  Nd2+ {[%clk 0:01:17]} 27. Ke1 {[%clk 0:01:02]}  Nc4 {[%clk 0:01:18]} 28. b3 {[%clk 0:01:01]}  Ne3 {[%clk 0:01:18]} 29. Kd2 {[%clk 0:00:56]}  d4 {[%clk 0:01:13]} 30. Be5 {[%clk 0:00:49]}  Nd5 {[%clk 0:01:02]} 31. f4 {[%clk 0:00:45]}  Nc3 {[%clk 0:00:58]} 32. a3 {[%clk 0:00:37]}  Nb1+ {[%clk 0:00:54]} 33. Kd3 {[%clk 0:00:37]}  Nxa3 {[%clk 0:00:55]} 34. Bxd4 {[%clk 0:00:33]}  Be7 {[%clk 0:00:52]} 35. f5 {[%clk 0:00:26]}  exf5 {[%clk 0:00:49]} 36. Bxf5 {[%clk 0:00:27]}  a5 {[%clk 0:00:37]} 37. Bd7 {[%clk 0:00:23]}  Bd8 {[%clk 0:00:24]} 38. Bb2 {[%clk 0:00:20]}  b4 {[%clk 0:00:22]} 39. Bd4 {[%clk 0:00:17]}  Nb1 {[%clk 0:00:20]} 40. e4 {[%clk 0:00:17]}  g5 {[%clk 0:00:18]} 41. g4 {[%clk 0:00:14]}  Ke7 {[%clk 0:00:18]} 42. Bb5 {[%clk 0:00:13]}  Bc7 {[%clk 0:00:15]} 43. e5 {[%clk 0:00:14]}  Ke6 {[%clk 0:00:15]} 44. Bc4+ {[%clk 0:00:13]}  Ke7 {[%clk 0:00:15]} 45. Bb2 {[%clk 0:00:12]}  Na3 {[%clk 0:00:15]} 46. Bd5 {[%clk 0:00:11]}  Bb8 {[%clk 0:00:14]} 47. Ke4 {[%clk 0:00:11]}  Nb5 {[%clk 0:00:15]} 48. Bc4 {[%clk 0:00:09]}  Nc3+ {[%clk 0:00:13]} 49. Kf5 {[%clk 0:00:09]}  Ba7 {[%clk 0:00:04]} 50. Bc1 {[%clk 0:00:07]}  Na2 {[%clk 0:00:01]} 51. Bd2 {[%clk 0:00:07]}  a4 {[%clk 0:00:02]} 52. bxa4 {[%clk 0:00:07]}  Bb6 {[%clk 0:00:03]} 53. Bxa2 {[%clk 0:00:07]}  Ba5 {[%clk 0:00:04]} 54. Bb3 {[%clk 0:00:07]}  Bb6 {[%clk 0:00:04]} 55. Bxb4+ {[%clk 0:00:07]}  Bc5 {[%clk 0:00:04]} 56. Bxc5+ {[%clk 0:00:07]}  Ke8 {[%clk 0:00:04]} 57. Bc4 {[%clk 0:00:07]}  Kd8 {[%clk 0:00:05]} 58. Bb5 {[%clk 0:00:07]}  Kc7 {[%clk 0:00:06]} 59. e6 {[%clk 0:00:08]}  Kb7 {[%clk 0:00:05]} 60. e7 {[%clk 0:00:08]} 1-0


[Site "https://www.chess.com"]

[Event "Titled Tuesday Blitz November 14 Early 2023"]
[White "Larino Nieto, David"]
[Black "Shuvalov, Evgenij"]
[WhiteFideId "2256444"]
[BlackFideId "4187237"]
[WhiteElo "2606"]
[BlackElo "2496"]
[Result "0-1"]
[Round "7"]
[TimeControl "180+1"]
[Date "2023.11.14"]
[WhiteClock "0:00:01"]
[BlackClock "0:00:09"]
[Board "122"]

1. e4 {[%clk 0:03:00]}  e6 {[%clk 0:02:49]} 2. d4 {[%clk 0:02:56]}  d5 {[%clk 0:02:49]} 3. Nd2 {[%clk 0:02:56]}  c5 {[%clk 0:02:48]} 4. exd5 {[%clk 0:02:56]}  exd5 {[%clk 0:02:49]} 5. Ngf3 {[%clk 0:02:57]}  Nc6 {[%clk 0:02:49]} 6. Bb5 {[%clk 0:02:57]}  Qe7+ {[%clk 0:02:49]} 7. Kf1 {[%clk 0:02:48]}  Nf6 {[%clk 0:02:48]} 8. h3 {[%clk 0:02:44]}  Qc7 {[%clk 0:02:43]} 9. g3 {[%clk 0:02:41]}  Bd6 {[%clk 0:02:37]} 10. dxc5 {[%clk 0:02:33]}  Bxc5 {[%clk 0:02:37]} 11. Nb3 {[%clk 0:02:31]}  Bxf2 {[%clk 0:02:25]} 12. Bf4 {[%clk 0:02:28]}  Qb6 {[%clk 0:02:24]} 13. Qe2+ {[%clk 0:02:11]}  Ne4 {[%clk 0:02:19]} 14. Ng5 {[%clk 0:01:18]}  Bc5 {[%clk 0:01:26]} 15. Nxe4 {[%clk 0:01:17]}  dxe4 {[%clk 0:01:27]} 16. Qxe4+ {[%clk 0:01:17]}  Be6 {[%clk 0:01:27]} 17. Bd3 {[%clk 0:00:58]}  O-O-O {[%clk 0:01:10]} 18. Nxc5 {[%clk 0:00:57]}  Qxc5 {[%clk 0:01:10]} 19. Rh2 {[%clk 0:00:57]}  Rhe8 {[%clk 0:01:03]} 20. Qa4 {[%clk 0:00:41]}  g5 {[%clk 0:00:49]} 21. Bd2 {[%clk 0:00:36]}  Ne5 {[%clk 0:00:35]} 22. g4 {[%clk 0:00:13]}  Nf3 {[%clk 0:00:32]} 23. Rf2 {[%clk 0:00:12]}  Bd5 {[%clk 0:00:21]} 24. Qb4 {[%clk 0:00:09]}  Qc7 {[%clk 0:00:17]} 25. Qc3 {[%clk 0:00:09]}  Bc6 {[%clk 0:00:16]} 26. Qf6 {[%clk 0:00:08]}  Qg3 {[%clk 0:00:16]} 27. Rg2 {[%clk 0:00:02]}  Nh2+ {[%clk 0:00:09]} 28. Rxh2 {[%clk 0:00:01]}  Qxh2 {[%clk 0:00:10]} 29. Qf2 {[%clk 0:00:01]}  Qh1+ {[%clk 0:00:09]} 30. Qg1 {[%clk 0:00:01]}  Qf3+ {[%clk 0:00:08]} 31. Qf2 {[%clk 0:00:01]}  Qxh3+ {[%clk 0:00:08]} 32. Kg1 {[%clk 0:00:01]}  Qh1# {[%clk 0:00:09]} 0-1


[Site "https://www.chess.com"]

[Event "Titled Tuesday Blitz November 14 Early 2023"]
[White "ploxoi"]
[Black "Ezat, Mohamed"]
[BlackFideId "10600906"]
[WhiteElo "2458"]
[BlackElo "2596"]
[Result "0-1"]
[Round "7"]
[TimeControl "180+1"]
[Date "2023.11.14"]
[WhiteClock "0:00:02"]
[BlackClock "0:00:12"]
[Board "123"]

1. d4 {[%clk 0:03:00]}  Nf6 {[%clk 0:02:54]} 2. c4 {[%clk 0:03:01]}  g6 {[%clk 0:02:54]} 3. Nc3 {[%clk 0:03:00]}  Bg7 {[%clk 0:02:54]} 4. e4 {[%clk 0:03:00]}  O-O {[%clk 0:02:54]} 5. Nf3 {[%clk 0:03:01]}  d6 {[%clk 0:02:55]} 6. Be2 {[%clk 0:03:01]}  Bg4 {[%clk 0:02:55]} 7. Be3 {[%clk 0:03:01]}  Nfd7 {[%clk 0:02:54]} 8. O-O {[%clk 0:03:01]}  c5 {[%clk 0:02:53]} 9. h3 {[%clk 0:02:58]}  Bxf3 {[%clk 0:02:52]} 10. Bxf3 {[%clk 0:02:59]}  Nc6 {[%clk 0:02:52]} 11. d5 {[%clk 0:02:58]}  Nd4 {[%clk 0:02:52]} 12. Bg4 {[%clk 0:02:50]}  Ne5 {[%clk 0:02:50]} 13. Be2 {[%clk 0:02:49]}  Qa5 {[%clk 0:02:46]} 14. Kh1 {[%clk 0:02:40]}  Qb4 {[%clk 0:02:40]} 15. Rc1 {[%clk 0:01:40]}  Qxb2 {[%clk 0:02:33]} 16. f4 {[%clk 0:01:30]}  Nd7 {[%clk 0:02:21]} 17. Bg4 {[%clk 0:01:30]}  f5 {[%clk 0:02:19]} 18. Rf2 {[%clk 0:01:30]}  Qa3 {[%clk 0:02:11]} 19. exf5 {[%clk 0:01:29]}  Nxf5 {[%clk 0:02:09]} 20. Bxf5 {[%clk 0:01:24]}  gxf5 {[%clk 0:02:05]} 21. Rf3 {[%clk 0:01:18]}  Qa5 {[%clk 0:01:48]} 22. Bf2 {[%clk 0:01:10]}  Nf6 {[%clk 0:01:46]} 23. Bh4 {[%clk 0:01:06]}  Ne4 {[%clk 0:01:45]} 24. Nxe4 {[%clk 0:01:02]}  fxe4 {[%clk 0:01:44]} 25. Rf1 {[%clk 0:01:01]}  Bf6 {[%clk 0:01:33]} 26. Qg4+ {[%clk 0:00:43]}  Kh8 {[%clk 0:01:32]} 27. Bxf6+ {[%clk 0:00:43]}  Rxf6 {[%clk 0:01:32]} 28. f5 {[%clk 0:00:43]}  Qxa2 {[%clk 0:01:27]} 29. Qxe4 {[%clk 0:00:41]}  Rg8 {[%clk 0:01:26]} 30. Rfe1 {[%clk 0:00:34]}  Rxf5 {[%clk 0:01:14]} 31. Re2 {[%clk 0:00:34]}  Qa3 {[%clk 0:01:08]} 32. Qxf5 {[%clk 0:00:19]}  Qxc1+ {[%clk 0:01:07]} 33. Kh2 {[%clk 0:00:20]}  Qg5 {[%clk 0:00:31]} 34. Qf3 {[%clk 0:00:14]}  Qg7 {[%clk 0:00:27]} 35. Re4 {[%clk 0:00:08]}  Rf8 {[%clk 0:00:26]} 36. Qe3 {[%clk 0:00:08]}  Rf7 {[%clk 0:00:26]} 37. Rg4 {[%clk 0:00:07]}  Qf6 {[%clk 0:00:20]} 38. Qe4 {[%clk 0:00:06]}  Qe5+ {[%clk 0:00:18]} 39. Qxe5+ {[%clk 0:00:06]}  dxe5 {[%clk 0:00:19]} 40. Rg5 {[%clk 0:00:06]}  Rf4 {[%clk 0:00:18]} 41. Rxe5 {[%clk 0:00:07]}  Rxc4 {[%clk 0:00:18]} 42. Rxe7 {[%clk 0:00:08]}  Rd4 {[%clk 0:00:15]} 43. Rxb7 {[%clk 0:00:08]}  Rxd5 {[%clk 0:00:14]} 44. Rxa7 {[%clk 0:00:08]}  Kg8 {[%clk 0:00:13]} 45. Rc7 {[%clk 0:00:08]}  Rg5 {[%clk 0:00:12]} 46. h4 {[%clk 0:00:08]}  Rd5 {[%clk 0:00:11]} 47. g3 {[%clk 0:00:07]}  h5 {[%clk 0:00:11]} 48. Kh3 {[%clk 0:00:06]}  Kf8 {[%clk 0:00:12]} 49. Rh7 {[%clk 0:00:02]}  Ke8 {[%clk 0:00:12]} 50. Rh8+ {[%clk 0:00:03]}  Kd7 {[%clk 0:00:11]} 51. Rh7+ {[%clk 0:00:03]}  Kc6 {[%clk 0:00:11]} 52. Rh6+ {[%clk 0:00:03]}  Kb5 {[%clk 0:00:12]} 53. Rh8 {[%clk 0:00:04]}  c4 {[%clk 0:00:12]} 54. Rb8+ {[%clk 0:00:02]}  Kc5 {[%clk 0:00:12]} 55. Rc8+ {[%clk 0:00:03]}  Kd4 {[%clk 0:00:12]} 56. Kg2 {[%clk 0:00:03]}  Kd3 {[%clk 0:00:12]} 57. Kf3 {[%clk 0:00:04]}  c3 {[%clk 0:00:13]} 58. Kf2 {[%clk 0:00:02]}  c2 {[%clk 0:00:12]} 59. Ke1 {[%clk 0:00:03]}  Re5+ {[%clk 0:00:12]} 60. Kf1 {[%clk 0:00:03]}  Re4 {[%clk 0:00:12]} 61. Kf2 {[%clk 0:00:02]}  Rc4 {[%clk 0:00:12]} 0-1


[Site "https://www.chess.com"]